bitfinex/quotes_SOLUSD_20241202
["timestamp","ask_amount","ask_price","bid_price","bid_amount"]
[1733167300039,0.12549,221.77,221.7,4.517]
[1733167300238,0.25098,221.75,221.64,13.43735704]
[1733167300727,0.25098,221.75,221.65,13.43735704]
[1733167300931,0.12549,221.75,221.68,13.43735704]
[1733167301234,11.2733,221.77,221.71,13.43735704]
[1733167301399,0.12549,221.76,221.7,17.95435704]
[1733167303713,0.12549,221.76,221.71,13.43735704]
[1733167304234,23.902374,221.76,221.71,13.43735704]
[1733167304611,23.776884,221.76,221.72,17.95435704]
[1733167304807,20.0,221.78,221.73,17.95435704]
[1733167305010,23.902374,221.8,221.74,13.43735704]
[1733167305312,23.902374,221.8,221.75,4.517]
[1733167305917,23.776884,221.8,221.76,4.517]
[1733167306121,23.776884,221.8,221.75,13.43735704]
[1733167306732,23.776884,221.8,221.76,13.43735704]
[1733167307048,26.39461657,221.84,221.77,13.43735704]
[1733167307341,26.39461657,221.84,221.76,13.43735704]
[1733167307714,26.39461657,221.84,221.75,13.43735704]
[1733167308316,26.39461657,221.84,221.71,4.517]
[1733167308317,0.12549,221.8,221.71,13.43735704]
[1733167308545,24.027864,221.8,221.71,13.43735704]
[1733167310044,35.299364,221.8,221.71,13.43735704]
[1733167310418,35.173874,221.8,221.72,13.43735704]
[1733167310734,35.173874,221.8,221.73,13.43735704]
[1733167311728,35.173874,221.8,221.71,13.43735704]
[1733167311931,0.25098,221.79,221.68,13.43735704]
[1733167312121,0.25098,221.79,221.67,20.0]
[1733167312122,0.25098,221.79,221.67,33.43735704]
[1733167313825,24.027864,221.77,221.67,33.43735704]
[1733167314026,24.027864,221.77,221.68,13.43735704]
[1733167314237,23.902374,221.77,221.68,13.43735704]
[1733167315145,23.902374,221.77,221.67,33.43735704]
[1733167315521,23.902374,221.75,221.67,33.43735704]
[1733167316218,23.902374,221.75,221.68,4.517]
[1733167317145,15.12521657,221.84,221.73,13.43735704]
[1733167317332,15.12521657,221.84,221.75,13.43735704]
[1733167318051,15.12521657,221.84,221.74,13.43735704]
[1733167318341,0.12549,221.82,221.72,13.43735704]
[1733167318549,23.902374,221.82,221.71,13.43735704]
[1733167318844,0.12549,221.81,221.69,13.43735704]
[1733167319020,0.12549,221.81,221.7,13.43735704]
[1733167319425,23.902374,221.8,221.71,4.517]
[1733167319723,23.902374,221.8,221.72,4.517]
[1733167320332,11.2719,221.79,221.72,4.517]
[1733167320536,11.2719,221.79,221.59,70.0]
[1733167320537,23.776884,221.74,221.59,70.0]
[1733167320739,23.776884,221.74,221.61,13.43735704]
[1733167320740,0.12549,221.73,221.61,13.43735704]
[1733167321241,0.12549,221.73,221.63,13.43735704]
[1733167321841,0.12549,221.73,221.64,13.43735704]
[1733167322030,23.902374,221.74,221.66,13.43735704]
[1733167322225,23.902374,221.74,221.62,13.43735704]
[1733167322226,0.12549,221.73,221.62,13.43735704]
[1733167322427,23.902374,221.69,221.59,13.43735704]
[1733167322636,23.902374,221.69,221.61,13.43735704]
[1733167322842,23.902374,221.69,221.62,13.43735704]
[1733167326257,0.07549,221.69,221.62,13.43735704]
[1733167326969,23.776884,221.68,221.6,13.43735704]
[1733167327135,23.776884,221.68,221.61,13.43735704]
[1733167327451,23.776884,221.68,221.6,13.43735704]
[1733167327657,0.12549,221.67,221.58,13.43735704]
[1733167327832,23.776884,221.64,221.58,13.43735704]
[1733167328865,23.776884,221.65,221.56,13.43735704]
[1733167329159,0.12549,221.64,221.56,13.43735704]
[1733167329542,0.25098,221.64,221.52,20.0]
[1733167329768,0.25098,221.64,221.54,13.43735704]
[1733167329936,0.25098,221.64,221.52,13.43735704]
[1733167330263,20.0,221.62,221.53,13.43735704]
[1733167330634,0.12549,221.6,221.53,13.43735704]
[1733167331059,0.12549,221.58,221.53,13.43735704]
[1733167331751,0.12549,221.58,221.54,13.43735704]
[1733167331939,0.12549,221.58,221.53,13.43735704]
[1733167332762,0.12549,221.58,221.54,13.43735704]
[1733167333548,0.12549,221.58,221.53,13.43735704]
[1733167333940,0.12549,221.58,221.54,13.43735704]
[1733167334748,23.776884,221.59,221.55,13.43735704]
[1733167334950,6.0011,221.66,221.58,13.43735704]
[1733167335264,6.0011,221.66,221.59,13.43735704]
[1733167335558,0.12549,221.65,221.57,13.43735704]
[1733167335762,6.0011,221.66,221.59,13.43735704]
[1733167335935,6.0011,221.66,221.62,13.43735704]
[1733167336660,6.0011,221.66,221.61,13.43735704]
[1733167337537,23.902374,221.65,221.61,13.43735704]
[1733167337771,23.776884,221.65,221.63,13.43735704]
[1733167337934,0.12549,221.68,221.63,13.43735704]
[1733167338261,0.12549,221.68,221.64,13.43735704]
[1733167338262,23.902374,221.68,221.64,13.43735704]
[1733167338466,0.12549,221.68,221.63,13.43735704]
[1733167338642,0.12549,221.68,221.61,13.43735704]
[1733167338963,0.12549,221.68,221.6,13.43735704]
[1733167339170,0.12549,221.66,221.6,13.43735704]
[1733167339664,23.902374,221.66,221.58,13.43735704]
[1733167339868,23.902374,221.66,221.59,13.43735704]
[1733167340041,23.902374,221.66,221.6,13.43735704]
[1733167340664,23.902374,221.66,221.54,13.43735704]
[1733167340665,17.2856,221.71,221.63,13.43735704]
[1733167340865,23.902374,221.7,221.64,13.43735704]
[1733167341066,23.776884,221.7,221.65,13.43735704]
[1733167341770,17.2856,221.71,221.66,13.43735704]
[1733167342067,17.2856,221.71,221.65,13.43735704]
[1733167342564,17.2856,221.71,221.59,4.513]
[1733167342565,17.2856,221.71,221.64,13.43735704]
[1733167342944,23.776884,221.7,221.64,13.43735704]
[1733167343566,23.776884,221.7,221.65,13.43735704]
[1733167344859,23.776884,221.7,221.59,4.513]
[1733167344860,23.776884,221.7,221.64,13.43735704]
[1733167345354,0.12549,221.69,221.62,13.43735704]
[1733167346077,0.25098,221.69,221.62,13.43735704]
[1733167346368,0.12549,221.66,221.57,13.43735704]
[1733167346559,0.12549,221.66,221.58,13.43735704]
[1733167346749,0.12549,221.66,221.6,13.43735704]
[1733167347571,0.12549,221.66,221.59,13.43735704]
[1733167349068,23.776884,221.67,221.6,13.43735704]
[1733167350469,23.776884,221.67,221.59,13.43735704]
[1733167351181,23.776884,221.67,221.6,4.513]
[1733167351362,0.12549,221.65,221.58,4.513]
[1733167351684,23.902374,221.61,221.51,13.43735704]
[1733167352188,23.902374,221.59,221.49,13.43735704]
[1733167352583,23.902374,221.59,221.5,4.513]
[1733167353282,35.184474,221.59,221.5,4.513]
[1733167353580,0.12549,221.57,221.49,4.513]
[1733167354782,0.12549,221.57,221.47,4.513]
[1733167354962,0.12549,221.54,221.45,4.513]
[1733167355171,0.12549,221.54,221.45,17.95035704]
[1733167355677,0.25098,221.55,221.45,17.95035704]
[1733167355879,0.25098,221.55,221.46,17.95035704]
[1733167356080,0.25098,221.55,221.46,4.513]
[1733167356285,0.12549,221.55,221.47,17.95035704]
[1733167356490,0.12549,221.55,221.48,13.43735704]
[1733167356776,0.12549,221.55,221.5,13.43735704]
[1733167357087,0.25098,221.55,221.47,17.95035704]
[1733167357257,0.25098,221.55,221.47,4.513]
[1733167357961,0.25098,221.55,221.47,17.95035704]
[1733167358290,6.0493,221.62,221.53,13.43735704]
[1733167358582,6.0493,221.62,221.55,13.43735704]
[1733167358781,6.0493,221.62,221.56,13.43735704]
[1733167358986,6.0493,221.62,221.5,20.0]
[1733167359168,6.0493,221.62,221.55,17.95035704]
[1733167359683,6.0493,221.62,221.56,13.43735704]
[1733167359879,6.0493,221.62,221.57,13.43735704]
[1733167360277,6.0493,221.62,221.56,13.43735704]
[1733167361090,6.0493,221.62,221.57,13.43735704]
[1733167361382,23.776884,221.61,221.57,13.43735704]
[1733167362983,23.776884,221.61,221.55,13.43735704]
[1733167363170,23.776884,221.61,221.55,17.95035704]
[1733167363882,23.776884,221.61,221.55,4.513]
[1733167364088,0.12549,221.6,221.53,13.43735704]
[1733167364259,0.12549,221.6,221.54,13.43735704]
[1733167364685,0.12549,221.6,221.55,13.43735704]
[1733167365267,0.12549,221.6,221.56,13.43735704]
[1733167365806,23.776884,221.65,221.58,13.43735704]
[1733167366108,22.757,221.67,221.62,13.43735704]
[1733167366486,22.757,221.67,221.61,13.43735704]
[1733167368582,22.757,221.67,221.62,13.43735704]
[1733167369189,0.12549,221.68,221.62,13.43735704]
[1733167369430,0.12549,221.68,221.61,13.43735704]
[1733167369699,0.25098,221.68,221.61,13.43735704]
[1733167370309,0.25098,221.68,221.58,13.43735704]
[1733167370880,0.25098,221.68,221.6,13.43735704]
[1733167371579,0.12549,221.68,221.61,13.43735704]
[1733167371778,0.12549,221.68,221.63,13.43735704]
[1733167372096,23.776884,221.69,221.63,13.43735704]
[1733167372407,23.776884,221.69,221.62,13.43735704]
[1733167373080,23.776884,221.69,221.61,13.43735704]
[1733167373302,0.12549,221.68,221.61,13.43735704]
[1733167373503,0.12549,221.68,221.62,13.43735704]
[1733167373700,11.2769,221.7,221.63,13.43735704]
[1733167373880,6.5519,221.72,221.66,13.43735704]
[1733167374998,15.6799,221.73,221.68,13.43735704]
[1733167375605,11.2717,221.8,221.71,13.43735704]
[1733167375791,11.2717,221.8,221.72,13.43735704]
[1733167376494,11.2717,221.8,221.71,13.43735704]
[1733167376704,11.2717,221.8,221.69,13.43735704]
[1733167377008,11.2717,221.8,221.68,13.43735704]
[1733167377306,24.153354,221.79,221.69,13.43735704]
[1733167377909,24.027864,221.77,221.68,13.43735704]
[1733167378585,24.027864,221.77,221.69,13.43735704]
[1733167378797,0.12549,221.75,221.68,13.43735704]
[1733167379008,23.902374,221.75,221.68,13.43735704]
[1733167379309,23.902374,221.75,221.69,13.43735704]
[1733167379511,31.2717,221.8,221.74,13.43735704]
[1733167379689,31.2717,221.8,221.72,13.43735704]
[1733167380003,31.2717,221.8,221.71,13.43735704]
[1733167380390,31.2717,221.8,221.68,13.43735704]
[1733167380598,24.027864,221.79,221.68,13.43735704]
[1733167380798,24.027864,221.79,221.65,16.1817]
[1733167380799,23.776884,221.77,221.65,16.1817]
[1733167380996,0.12549,221.72,221.61,16.1468]
[1733167381201,0.12549,221.7,221.55,16.1468]
[1733167381408,0.25098,221.7,221.57,13.43735704]
[1733167381709,0.12549,221.68,221.6,13.43735704]
[1733167382011,23.902374,221.69,221.61,13.43735704]
[1733167382186,0.12549,221.7,221.63,13.43735704]
[1733167382512,23.776884,221.71,221.67,13.43735704]
[1733167382692,15.9169,221.74,221.68,13.43735704]
[1733167383095,15.9169,221.74,221.66,17.95035704]
[1733167383692,15.9169,221.74,221.67,13.43735704]
[1733167383890,6.4259,221.77,221.69,13.43735704]
[1733167384095,23.902374,221.76,221.69,17.95035704]
[1733167384316,23.902374,221.76,221.7,13.43735704]
[1733167384504,16.4035,221.79,221.74,13.43735704]
[1733167385014,16.4035,221.79,221.73,13.43735704]
[1733167385415,16.4035,221.79,221.72,17.95035704]
[1733167385713,16.4035,221.79,221.73,13.43735704]
[1733167386187,16.4035,221.79,221.72,17.95035704]
[1733167386385,16.4035,221.79,221.72,4.513]
[1733167386715,16.4035,221.79,221.73,4.513]
[1733167387615,16.4035,221.79,221.73,17.95035704]
[1733167388317,16.4035,221.79,221.73,4.513]
[1733167389015,23.902374,221.78,221.67,13.43735704]
[1733167389205,0.12549,221.77,221.65,29.49725704]
[1733167389512,0.12549,221.74,221.63,13.43735704]
[1733167389700,23.902374,221.76,221.66,13.43735704]
[1733167390024,0.12549,221.74,221.66,4.513]
[1733167390319,30.005174,221.72,221.66,4.513]
[1733167391102,30.005174,221.72,221.64,4.513]
[1733167392926,0.12549,221.71,221.63,4.513]
[1733167393213,23.776884,221.7,221.62,4.513]
[1733167393602,23.902374,221.7,221.62,4.513]
[1733167393997,23.902374,221.7,221.61,4.513]
[1733167395015,23.902374,221.7,221.61,17.95035704]
[1733167395312,23.902374,221.7,221.62,17.95035704]
[1733167396297,23.902374,221.7,221.62,13.43735704]
[1733167397595,23.902374,221.7,221.63,13.43735704]
[1733167400117,23.902374,221.68,221.61,13.43735704]
[1733167400299,0.12549,221.66,221.55,13.43735704]
[1733167401009,0.12549,221.64,221.55,13.43735704]
[1733167401210,24.153354,221.64,221.55,13.43735704]
[1733167401911,24.153354,221.64,221.56,13.43735704]
[1733167402125,35.432954,221.64,221.56,13.43735704]
[1733167402512,35.432954,221.64,221.55,13.43735704]
[1733167402713,35.432954,221.64,221.54,13.43735704]
[1733167402907,24.027864,221.62,221.53,13.43735704]
[1733167403109,24.027864,221.62,221.52,13.43735704]
[1733167403419,24.027864,221.62,221.54,13.43735704]
[1733167403817,24.027864,221.62,221.49,4.513]
[1733167403818,24.027864,221.62,221.55,13.43735704]
[1733167404522,23.902374,221.62,221.57,13.43735704]
[1733167404706,23.902374,221.62,221.58,13.43735704]
[1733167404906,23.902374,221.62,221.59,13.43735704]
[1733167405315,23.776884,221.67,221.6,13.43735704]
[1733167406223,23.776884,221.67,221.55,4.513]
[1733167406224,16.5656,221.68,221.63,4.513]
[1733167406439,6.6219,221.69,221.64,13.43735704]
[1733167407320,33.9716,221.74,221.67,13.43735704]
[1733167407813,33.9716,221.74,221.68,13.43735704]
[1733167408197,22.6971,221.74,221.69,17.95035704]
[1733167408399,15.12949626,221.76,221.72,4.513]
[1733167409428,15.12949626,221.76,221.71,4.513]
[1733167410008,15.12949626,221.76,221.71,17.95035704]
[1733167410207,15.12949626,221.76,221.73,4.513]
[1733167410530,15.12949626,221.76,221.74,4.513]
[1733167411219,15.12949626,221.76,221.73,13.43735704]
[1733167411815,22.5479,221.8,221.7,13.43735704]
[1733167412132,23.902374,221.79,221.71,13.43735704]
[1733167413310,23.902374,221.79,221.7,13.43735704]
[1733167418236,6.6297,221.8,221.75,13.43735704]
[1733167418535,24.153354,221.84,221.75,13.43735704]
[1733167419735,24.153354,221.84,221.74,13.43735704]
[1733167421311,24.153354,221.84,221.75,4.513]
[1733167423542,24.153354,221.84,221.73,4.513]
[1733167429044,23.902374,221.82,221.73,4.513]
[1733167429622,0.12549,221.8,221.65,4.513]
[1733167429830,0.12549,221.8,221.69,4.513]
[1733167430142,24.027864,221.74,221.64,13.43735704]
[1733167430352,23.902374,221.74,221.62,13.43735704]
[1733167430521,35.177074,221.74,221.62,13.43735704]
[1733167430723,35.177074,221.74,221.63,4.513]
[1733167431225,35.177074,221.74,221.65,4.513]
[1733167434748,23.902374,221.74,221.66,17.95035704]
[1733167434937,23.902374,221.74,221.66,4.513]
[1733167435861,23.902374,221.74,221.66,17.95035704]
[1733167436651,23.902374,221.74,221.66,4.513]
[1733167436843,23.902374,221.74,221.64,4.513]
[1733167437050,23.902374,221.72,221.64,4.513]
[1733167437934,23.902374,221.72,221.64,13.43735704]
[1733167439932,23.902374,221.72,221.65,13.43735704]
[1733167440437,23.902374,221.72,221.64,13.43735704]
[1733167441455,23.902374,221.72,221.65,4.513]
[1733167441649,23.902374,221.72,221.65,13.11817542]
[1733167441845,22.1897,221.75,221.69,8.60517542]
[1733167442054,22.1897,221.75,221.7,8.60517542]
[1733167442255,22.1897,221.75,221.64,20.0]
[1733167442433,11.2744,221.74,221.64,28.60517542]
[1733167442633,0.25098,221.73,221.56,4.513]
[1733167442848,0.25098,221.73,221.62,13.11817542]
[1733167443055,0.25098,221.73,221.62,8.60517542]
[1733167443563,0.12549,221.72,221.62,8.60517542]
[1733167443731,0.12549,221.72,221.63,4.513]
[1733167443936,0.12549,221.72,221.64,4.513]
[1733167444136,23.776884,221.74,221.69,8.60517542]
[1733167444365,23.776884,221.74,221.72,8.60517542]
[1733167444569,21.73101758,221.8,221.72,8.60517542]
[1733167444773,21.73101758,221.8,221.72,13.11817542]
[1733167445067,21.73101758,221.8,221.72,4.513]
[1733167445463,33.00251758,221.8,221.74,4.513]
[1733167445766,17.8749,221.8,221.74,4.513]
[1733167446158,17.8749,221.8,221.71,13.43484736]
[1733167446862,23.902374,221.79,221.71,13.43484736]
[1733167450254,23.902374,221.79,221.7,13.43484736]
[1733167450563,23.902374,221.77,221.66,13.43484736]
[1733167451570,0.12549,221.73,221.63,13.43484736]
[1733167451774,0.12549,221.73,221.62,13.43484736]
[1733167452003,0.12549,221.73,221.61,13.43484736]
[1733167452183,0.12549,221.73,221.62,13.43484736]
[1733167452655,0.12549,221.74,221.62,13.43484736]
[1733167452858,0.12549,221.74,221.63,13.43484736]
[1733167453174,23.776884,221.73,221.62,13.43484736]
[1733167453381,0.12549,221.72,221.62,13.43484736]
[1733167455076,0.12549,221.72,221.66,13.43484736]
[1733167455447,23.776884,221.73,221.66,13.43484736]
[1733167456182,23.776884,221.73,221.67,4.513]
[1733167456761,23.776884,221.73,221.65,4.513]
[1733167457059,0.12549,221.72,221.65,4.513]
[1733167457274,0.12549,221.72,221.64,4.513]
[1733167457986,23.902374,221.7,221.64,4.513]
[1733167458372,23.902374,221.7,221.62,4.513]
[1733167459389,23.902374,221.7,221.63,4.513]
[1733167459562,23.902374,221.7,221.63,17.94784736]
[1733167459759,23.902374,221.7,221.63,4.513]
[1733167460066,23.902374,221.7,221.63,17.94784736]
[1733167461164,0.25098,221.69,221.63,4.513]
[1733167461486,20.0,221.65,221.48,15.4772]
[1733167461677,23.902374,221.64,221.53,13.43484736]
[1733167462066,23.902374,221.64,221.54,13.43484736]
[1733167462261,23.902374,221.64,221.55,4.513]
[1733167463569,23.902374,221.64,221.55,17.94784736]
[1733167463769,23.776884,221.64,221.58,17.94784736]
[1733167463965,23.776884,221.64,221.51,0.90035482]
[1733167463966,23.776884,221.64,221.61,13.43484736]
[1733167464262,11.274,221.75,221.63,13.43484736]
[1733167464477,11.274,221.75,221.68,13.43484736]
[1733167464792,22.5911,221.76,221.69,17.94784736]
[1733167465091,22.5911,221.76,221.7,13.43484736]
[1733167465304,22.5911,221.76,221.71,13.43484736]
[1733167465793,22.5911,221.76,221.71,4.513]
[1733167465979,22.5911,221.76,221.65,20.0]
[1733167466166,22.5911,221.76,221.68,13.43484736]
[1733167466587,23.776884,221.75,221.68,13.43484736]
[1733167466787,23.776884,221.75,221.69,4.513]
[1733167467462,23.776884,221.75,221.7,4.513]
[1733167468795,23.776884,221.75,221.69,4.513]
[1733167469186,23.776884,221.75,221.7,4.513]
[1733167471871,23.776884,221.75,221.69,4.513]
[1733167473483,23.776884,221.75,221.68,4.513]
[1733167475899,23.776884,221.75,221.67,4.513]
[1733167476195,23.776884,221.75,221.66,13.43484736]
[1733167476365,23.776884,221.75,221.65,13.43484736]
[1733167476567,23.776884,221.75,221.66,13.43484736]
[1733167476964,0.12549,221.74,221.64,13.43484736]
[1733167477176,23.776884,221.72,221.63,13.43484736]
[1733167479671,0.12549,221.71,221.63,13.43484736]
[1733167480588,0.12549,221.71,221.65,13.43484736]
[1733167481389,23.776884,221.72,221.68,13.43484736]
[1733167481588,33.8646,221.76,221.69,13.43484736]
[1733167482297,22.5911,221.76,221.71,13.43484736]
[1733167482491,22.5911,221.76,221.65,13.43484736]
[1733167482492,22.5911,221.76,221.7,13.43484736]
[1733167483782,23.776884,221.75,221.67,13.43484736]
[1733167484191,23.776884,221.75,221.68,13.43484736]
[1733167485804,23.776884,221.75,221.69,13.43484736]
[1733167485974,23.776884,221.75,221.7,13.43484736]
[1733167486370,23.776884,221.75,221.71,4.513]
[1733167488998,23.776884,221.75,221.72,0.08005128]
[1733167490100,23.776884,221.75,221.72,4.59305128]
[1733167491204,23.776884,221.75,221.72,0.08005128]
[1733167498689,23.776884,221.76,221.72,0.08005128]
[1733167499718,20.0,221.77,221.72,0.08005128]
[1733167499896,11.2714,221.8,221.72,0.08005128]
[1733167501000,23.776884,221.79,221.72,0.08005128]
[1733167501897,15.12570491,221.81,221.72,9.58113517]
[1733167502516,15.12570491,221.81,221.72,0.97953771]
[1733167503036,15.12570491,221.81,221.73,4.513]
[1733167503194,23.776884,221.8,221.72,0.08005128]
[1733167503396,0.12549,221.79,221.72,0.08005128]
[1733167504124,0.12549,221.79,221.69,4.513]
[1733167504428,23.776884,221.76,221.69,4.513]
[1733167505616,23.776884,221.76,221.68,15.3584]
[1733167506225,23.776884,221.76,221.69,4.513]
[1733167511697,11.2693,221.84,221.71,4.513]
[1733167512063,11.2693,221.84,221.7,13.44046864]
[1733167512404,11.2693,221.84,221.71,13.44046864]
[1733167512620,11.2693,221.84,221.7,13.44046864]
[1733167512821,11.2693,221.84,221.71,4.513]
[1733167513019,0.25098,221.83,221.72,4.513]
[1733167513205,23.776884,221.75,221.68,15.3584]
[1733167513410,23.776884,221.75,221.63,29.85496864]
[1733167513609,23.776884,221.75,221.63,16.4145]
[1733167513798,23.776884,221.71,221.64,4.513]
[1733167514200,23.776884,221.71,221.59,4.513]
[1733167515116,23.776884,221.71,221.58,4.513]
[1733167515117,0.12549,221.7,221.58,4.513]
[1733167516209,0.12549,221.7,221.58,17.95346864]
[1733167516410,0.12549,221.7,221.59,17.95346864]
[1733167516824,0.12549,221.7,221.58,4.513]
[1733167517330,0.12549,221.7,221.58,17.95346864]
[1733167517625,0.25098,221.65,221.51,16.0572]
[1733167517818,0.12549,221.62,221.49,70.0]
[1733167518636,0.12549,221.62,221.5,4.513]
[1733167518803,0.37647,221.62,221.5,4.513]
[1733167519004,23.902374,221.59,221.46,16.0572]
[1733167519202,23.902374,221.59,221.47,13.44046864]
[1733167519404,0.12549,221.58,221.46,16.0572]
[1733167519602,23.902374,221.55,221.44,4.513]
[1733167520705,20.0,221.55,221.44,4.513]
[1733167521204,23.776884,221.53,221.43,13.44046864]
[1733167521403,0.12549,221.57,221.43,13.44046864]
[1733167521404,15.1033,221.59,221.46,13.44046864]
[1733167521604,23.776884,221.55,221.48,13.44046864]
[1733167522031,23.776884,221.55,221.47,13.44046864]
[1733167523100,15.1033,221.59,221.49,13.44046864]
[1733167523315,15.1033,221.59,221.5,13.44046864]
[1733167523933,15.1878,221.64,221.52,13.44046864]
[1733167524339,15.1878,221.64,221.54,13.44046864]
[1733167524569,15.1878,221.64,221.54,33.44046864]
[1733167525921,15.1878,221.64,221.55,13.44046864]
[1733167526122,6.4877,221.67,221.57,13.44046864]
[1733167526329,6.4877,221.67,221.58,13.44046864]
[1733167528228,16.3943,221.7,221.61,13.44046864]
[1733167528550,6.2598,221.74,221.66,13.44046864]
[1733167528846,6.2598,221.74,221.64,20.0]
[1733167529053,6.2598,221.74,221.62,13.44046864]
[1733167529237,0.25098,221.73,221.58,13.44046864]
[1733167529439,0.25098,221.73,221.57,13.44046864]
[1733167529627,0.25098,221.73,221.58,13.44046864]
[1733167529952,0.12549,221.72,221.58,13.44046864]
[1733167530127,35.051784,221.73,221.6,13.44046864]
[1733167530334,6.2598,221.74,221.62,13.44046864]
[1733167530856,6.2598,221.74,221.63,13.44046864]
[1733167531644,6.2598,221.74,221.62,13.69144864]
[1733167532370,6.2598,221.74,221.65,13.56595864]
[1733167532665,6.2598,221.74,221.66,13.44046864]
[1733167533241,6.2598,221.74,221.65,13.44046864]
[1733167533960,6.2598,221.74,221.66,13.44046864]
[1733167534267,6.17974872,221.74,221.66,13.44046864]
[1733167534766,16.3943,221.75,221.63,0.25098]
[1733167534767,20.0,221.82,221.67,13.44046864]
[1733167534965,20.0,221.77,221.67,13.44046864]
[1733167535267,20.0,221.77,221.68,13.44046864]
[1733167535572,23.902374,221.8,221.69,13.44046864]
[1733167536069,23.902374,221.8,221.68,13.44046864]
[1733167536564,27.8021,221.84,221.72,13.56595864]
[1733167536769,1.02846601,221.83,221.73,13.44046864]
[1733167536954,1.02846601,221.83,221.74,13.56595864]
[1733167537569,1.02846601,221.83,221.75,13.44046864]
[1733167538067,1.02846601,221.83,221.76,13.44046864]
[1733167538368,1.02846601,221.83,221.79,13.44046864]
[1733167538572,1.02846601,221.83,221.82,13.56595864]
[1733167540848,0.5302386,221.89,221.82,13.56595864]
[1733167541045,0.5302386,221.89,221.83,13.44046864]
[1733167542564,0.5302386,221.89,221.86,0.12549]
[1733167543161,0.5302386,221.89,221.88,0.25098]
[1733167543351,0.5302386,221.89,221.88,1.14968846]
[1733167543752,0.5302386,221.89,221.88,0.25098]
[1733167544960,0.5302386,221.89,221.87,29.30346864]
[1733167545268,0.5302386,221.89,221.82,13.44046864]
[1733167545683,0.5302386,221.89,221.8,37.33737112]
[1733167545871,0.5302386,221.89,221.78,21.47437112]
[1733167546050,0.5302386,221.89,221.8,21.72535112]
[1733167546250,0.5302386,221.89,221.84,21.72535112]
[1733167546444,0.5302386,221.89,221.83,21.47437112]
[1733167546649,0.5302386,221.89,221.79,21.47437112]
[1733167546870,0.5302386,221.89,221.8,0.25098]
[1733167547060,0.5302386,221.89,221.8,21.72535112]
[1733167547263,0.5302386,221.89,221.82,21.47437112]
[1733167547758,0.5302386,221.89,221.83,0.12549]
[1733167548573,0.5302386,221.89,221.83,21.47437112]
[1733167549276,0.5302386,221.89,221.84,21.47437112]
[1733167549479,0.5302386,221.89,221.86,0.33663057]
[1733167552354,0.5302386,221.89,221.86,4.84963057]
[1733167554082,0.5302386,221.89,221.87,4.513]
[1733167555371,0.5302386,221.89,221.86,0.33663057]
[1733167557358,0.5302386,221.89,221.86,4.84963057]
[1733167558379,0.5302386,221.89,221.86,26.32400169]
[1733167558953,0.5302386,221.89,221.88,4.63849]
[1733167559162,0.5302386,221.89,221.88,27.13710842]
[1733167560988,0.5302386,221.89,221.88,0.12549]
[1733167561789,0.5302386,221.89,221.87,4.513]
[1733167561956,0.5302386,221.89,221.86,4.84963057]
[1733167562870,0.0302386,221.89,221.86,4.84963057]
[1733167563191,0.0302386,221.89,221.86,0.33663057]
[1733167563492,15.6602386,221.96,221.86,0.33663057]
[1733167567380,11.38919,221.95,221.86,0.33663057]
[1733167570695,0.12549,221.91,221.86,0.33663057]
[1733167571664,17.3619,221.9,221.86,0.33663057]
[1733167571874,20.0,221.87,221.86,0.33663057]
[1733167574485,17.3619,221.9,221.86,0.33663057]
[1733167575173,6.0956,221.9,221.86,0.33663057]
[1733167575898,16.0163,221.92,221.86,0.33663057]
[1733167576073,20.0,221.91,221.86,0.33663057]
[1733167576399,11.2647,221.94,221.86,0.33663057]
[1733167577272,11.2628,221.97,221.87,4.513]
[1733167577583,11.2628,221.97,221.87,17.93199288]
[1733167577976,16.588,221.98,221.87,4.513]
[1733167578190,6.0476,222.0,221.87,17.93199288]
[1733167579075,6.0476,222.0,221.87,4.513]
[1733167579275,11.2617,221.99,221.87,0.12549]
[1733167580185,20.0,221.96,221.86,4.84963057]
[1733167580386,20.0,221.96,221.86,0.33663057]
[1733167580977,11.2617,221.99,221.87,0.12549]